fUSD/lending_fUSD_20240502
["ID","MTS","AMOUNT","RATE_DAILY","PERIOD"]
[325273780,1714677053684,-692.2,0.00030136,2]
[325273781,1714677053693,-500.0,0.00030136,2]
[325273782,1714677053703,-500.0,0.00030136,2]
[325273783,1714677053713,-771.46,0.00030136,2]
[325273784,1714677053723,-500.0,0.00030136,2]
[325273785,1714677053732,-757.82,0.00030136,2]
[325273786,1714677053742,-500.0,0.00030136,2]
[325273787,1714677053751,-500.0,0.00030136,2]
[325273788,1714677053762,-500.0,0.00030136,2]
[325273789,1714677053772,-500.0,0.00030136,2]
[325273790,1714677053781,-1179.22,0.00030136,2]
[325273791,1714677053791,-500.0,0.00030136,2]
[325273792,1714677053800,-500.0,0.00030136,2]
[325273793,1714677053809,-500.0,0.00030136,2]
[325273794,1714677053819,-500.0,0.00030136,2]
[325273795,1714677053828,-500.0,0.00030136,2]
[325273796,1714677053838,-1153.2,0.00030136,2]
[325273797,1714677053848,-500.0,0.00030136,2]
[325273798,1714677053858,-500.0,0.00030136,2]
[325273799,1714677053867,-500.0,0.00030136,2]
[325273800,1714677053876,-500.0,0.00030136,2]
[325273801,1714677053886,-500.0,0.00030136,2]
[325273802,1714677053897,-500.0,0.00030136,2]
[325273803,1714677053906,-500.0,0.00030136,2]
[325273804,1714677053915,-650.53,0.00030136,2]
[325273805,1714677053924,-500.0,0.00030136,2]
[325273806,1714677053935,-500.0,0.00030136,2]
[325273807,1714677053946,-500.0,0.00030136,2]
[325273808,1714677053955,-500.0,0.00030136,2]
[325273809,1714677053964,-500.0,0.00030136,2]
[325273810,1714677053973,-500.0,0.00030136,2]
[325273811,1714677053982,-500.0,0.00030136,2]
[325273812,1714677053992,-500.0,0.00030136,2]
[325273813,1714677054001,-508.43,0.00030136,2]
[325273814,1714677054012,-500.0,0.00030136,2]
[325273815,1714677054022,-500.0,0.00030136,2]
[325273816,1714677054031,-500.0,0.00030136,2]
[325273817,1714677054041,-550.96530172,0.00030136,2]
[325273818,1714677054050,-500.0,0.00030136,2]
[325273819,1714677054059,-500.0,0.00030136,2]
[325273820,1714677054069,-500.0,0.00030136,2]
[325273821,1714677054084,-500.0,0.00030136,2]
[325273822,1714677054094,-500.0,0.00030136,2]
[325273823,1714677054103,-500.0,0.00030136,2]
[325273824,1714677054112,-500.0,0.00030136,2]
[325273825,1714677054122,-500.0,0.00030136,2]
[325273826,1714677054131,-500.0,0.00030136,2]
[325273827,1714677054140,-500.0,0.00030136,2]
[325273828,1714677054150,-500.0,0.00030136,2]
[325273829,1714677054161,-500.0,0.00030136,2]
[325273830,1714677054173,-500.0,0.00030136,2]
[325273831,1714677054182,-500.0,0.00030136,2]
[325273832,1714677054192,-500.0,0.00030136,2]
[325273833,1714677054203,-500.0,0.00030136,2]
[325273834,1714677054213,-500.0,0.00030136,2]
[325273835,1714677054223,-500.0,0.00030136,2]
[325273836,1714677054233,-500.0,0.00030136,2]
[325273837,1714677054243,-500.0,0.00030136,2]
[325273838,1714677054252,-948.43,0.00030136,2]
[325273839,1714677054263,-500.0,0.00030136,2]
[325273840,1714677054272,-1481.57,0.00030136,2]
[325273841,1714677054281,-1088.08,0.00030136,2]
[325273842,1714677054290,-500.0,0.00030136,2]
[325273843,1714677054299,-500.0,0.00030136,2]
[325273844,1714677054309,-500.0,0.00030136,2]
[325273845,1714677054318,-500.0,0.00030136,2]
[325273846,1714677054327,-500.0,0.00030136,2]
[325273847,1714677054337,-500.0,0.00030136,2]
[325273848,1714677054347,-500.0,0.00030136,2]
[325273849,1714677054356,-577.14848074,0.00030136,2]
[325273850,1714677054365,-500.0,0.00030136,2]
[325273851,1714677054375,-500.0,0.00030136,2]
[325273852,1714677054384,-500.0,0.00030136,2]
[325273853,1714677054395,-500.0,0.00030136,2]
[325273854,1714677054413,-1105.34,0.00030136,2]
[325273855,1714677054422,-500.0,0.00030136,2]
[325273856,1714677054432,-500.0,0.00030136,2]
[325273857,1714677054442,-500.0,0.00030136,2]
[325273858,1714677054454,-1472.94,0.00030136,2]
[325273859,1714677054464,-210.51570243,0.00030136,2]
[325273860,1714677054474,-588.58,0.00030136,2]
[325273861,1714677054484,-500.0,0.00030136,2]
[325273862,1714677054493,-500.0,0.00030136,2]
[325273863,1714677054503,-500.0,0.00030136,2]
[325273864,1714677054513,-1214.48,0.00030136,2]
[325273865,1714677054522,-500.0,0.00030136,2]
[325273866,1714677054531,-500.0,0.00030136,2]
[325273867,1714677054541,-813.96,0.00030136,2]
[325273868,1714677054552,-197.52418352,0.00030136,2]
[325273869,1714677054561,-500.0,0.00030136,2]
[325273870,1714677054571,-500.0,0.00030136,2]
[325273871,1714677054581,-500.0,0.00030136,2]
[325273872,1714677054590,-500.0,0.00030136,2]
[325273873,1714677054599,-500.0,0.00030136,2]
[325273874,1714677054609,-500.0,0.00030136,2]
[325273875,1714677054618,-500.0,0.00030136,2]
[325273876,1714677054628,-500.0,0.00030136,2]
[325273877,1714677054638,-592.13,0.00030136,2]
[325273878,1714677054647,-500.0,0.00030136,2]
[325273879,1714677054657,-501.51022438,0.00030136,2]
[325273880,1714677054667,-1107.28,0.00030136,2]
[325273881,1714677054677,-1296.0,0.00030136,2]
[325273882,1714677054687,-500.0,0.00030136,2]
[325273883,1714677054697,-500.0,0.00030136,2]
[325273884,1714677054707,-500.0,0.00030136,2]
[325273885,1714677054717,-514.82,0.00030136,2]
[325273886,1714677054726,-500.0,0.00030136,2]
[325273887,1714677054736,-651.28,0.00030136,2]
[325273888,1714677054746,-570.15,0.00030136,2]
[325273889,1714677054757,-500.0,0.00030136,2]
[325273890,1714677054766,-500.0,0.00030136,2]
[325273891,1714677054776,-500.0,0.00030136,2]
[325273892,1714677054786,-584.08,0.00030136,2]
[325273893,1714677054795,-2582.32,0.00030136,2]
[325273894,1714677054804,-500.0,0.00030136,2]
[325273895,1714677054814,-500.0,0.00030136,2]
[325273896,1714677054824,-500.0,0.00030136,2]
[325273897,1714677054833,-586.22,0.00030136,2]
[325273898,1714677054842,-500.0,0.00030136,2]
[325273899,1714677054852,-1175.11,0.00030136,2]
[325273900,1714677054861,-500.0,0.00030136,2]
[325273901,1714677054871,-500.0,0.00030136,2]
[325273902,1714677054880,-613.29990851,0.00030136,2]
[325273903,1714677054890,-500.0,0.00030136,2]
[325273904,1714677054899,-500.0,0.00030136,2]
[325273905,1714677054908,-1323.6,0.00030136,2]
[325273906,1714677054918,-500.0,0.00030136,2]
[325273907,1714677054927,-500.0,0.00030136,2]
[325273908,1714677054936,-500.0,0.00030136,2]
[325273909,1714677054945,-1977.79,0.00030136,2]
[325273910,1714677054954,-500.0,0.00030136,2]
[325273911,1714677054963,-500.0,0.00030136,2]
[325273912,1714677054972,-500.0,0.00030136,2]
[325273913,1714677054982,-500.0,0.00030136,2]
[325273914,1714677054991,-2004.59,0.00030136,2]
[325273915,1714677055000,-500.0,0.00030136,2]
[325273916,1714677055010,-500.0,0.00030136,2]
[325273917,1714677055019,-500.0,0.00030136,2]
[325273918,1714677055029,-500.0,0.00030136,2]
[325273919,1714677055038,-866.46,0.00030136,2]
[325273920,1714677055047,-501.42919224,0.00030136,2]
[325273921,1714677055057,-500.0,0.00030136,2]
[325273922,1714677055066,-500.0,0.00030136,2]
[325273923,1714677055080,-500.0,0.00030136,2]
[325273924,1714677055089,-1903.0,0.00030136,2]
[325273925,1714677055098,-946.68,0.00030136,2]
[325273926,1714677055108,-500.0,0.00030136,2]
[325273927,1714677055118,-500.0,0.00030136,2]
[325273928,1714677055127,-500.0,0.00030136,2]
[325273929,1714677055137,-970.46,0.00030136,2]
[325273930,1714677055146,-500.0,0.00030136,2]
[325273931,1714677055156,-500.0,0.00030136,2]
[325273932,1714677055166,-500.0,0.00030136,2]
[325273933,1714677055176,-2109.16,0.00030136,2]
[325273934,1714677055185,-500.0,0.00030136,2]
[325273935,1714677055195,-706.49,0.00030136,2]
[325273936,1714677055204,-505.75959671,0.00030136,2]
[325273937,1714677055214,-500.0,0.00030136,2]
[325273938,1714677055223,-500.0,0.00030136,2]
[325273939,1714677055234,-500.0,0.00030136,2]
[325273940,1714677055245,-500.0,0.00030136,2]
[325273941,1714677055255,-500.0,0.00030136,2]
[325273942,1714677055266,-1128.61,0.00030136,2]
[325273943,1714677055277,-500.53195006,0.00030136,2]
[325273944,1714677055287,-1703.36,0.00030136,2]
[325273945,1714677055297,-1595.43,0.00030136,2]
[325273946,1714677055308,-500.0,0.00030136,2]
[325273947,1714677055319,-500.0,0.00030136,2]
[325273948,1714677055330,-500.0,0.00030136,2]
[325273949,1714677055340,-1534.77,0.00030136,2]
[325273950,1714677055350,-500.0,0.00030136,2]
[325273951,1714677055360,-500.0,0.00030136,2]
[325273952,1714677055550,-500.0,0.00030136,2]
[325273953,1714677055563,-500.0,0.00030136,2]
[325273954,1714677055573,-500.0,0.00030136,2]
[325273955,1714677055583,-500.0,0.00030136,2]
[325273956,1714677055592,-500.0,0.00030136,2]
[325273957,1714677055601,-1332.95,0.00030136,2]
[325273958,1714677055611,-500.0,0.00030136,2]
[325273959,1714677055620,-500.0,0.00030136,2]
[325273960,1714677055630,-500.0,0.00030136,2]
[325273961,1714677055640,-500.0,0.00030136,2]
[325273962,1714677055651,-1226.17,0.00030136,2]
[325273963,1714677055660,-500.0,0.00030136,2]
[325273964,1714677055669,-2783.57,0.00030136,2]
[325273965,1714677055679,-500.0,0.00030136,2]
[325273966,1714677055688,-500.0,0.00030136,2]
[325273967,1714677055698,-500.0,0.00030136,2]
[325273968,1714677055707,-500.0,0.00030136,2]
[325273969,1714677055716,-500.0,0.00030136,2]
[325273970,1714677055725,-546.42,0.00030136,2]
[325273971,1714677055735,-500.0,0.00030136,2]
[325273972,1714677055744,-500.0,0.00030136,2]
[325273973,1714677055754,-1033.39,0.00030136,2]
[325273974,1714677055763,-500.0,0.00030136,2]
[325273975,1714677055772,-500.0,0.00030136,2]
[325273976,1714677055782,-3045.06,0.00030136,2]
[325273977,1714677055791,-1217.34,0.00030136,2]
[325273978,1714677055800,-500.0,0.00030136,2]
[325273979,1714677055810,-500.0,0.00030136,2]
[325273980,1714677055819,-500.0,0.00030136,2]
[325273981,1714677055828,-504.08916316,0.00030136,2]
[325273982,1714677055837,-500.0,0.00030136,2]
[325273983,1714677055847,-500.0,0.00030136,2]
[325273984,1714677055856,-500.0,0.00030136,2]
[325273985,1714677055865,-500.0,0.00030136,2]
[325273986,1714677055874,-500.0,0.00030136,2]
[325273987,1714677055885,-500.0,0.00030136,2]
[325273988,1714677055896,-500.0,0.00030136,2]
[325273989,1714677055905,-1738.47,0.00030136,2]
[325273990,1714677055914,-500.0,0.00030136,2]
[325273991,1714677055924,-1205.65,0.00030136,2]
[325273992,1714677055932,-500.0,0.00030136,2]
[325273993,1714677055942,-500.0,0.00030136,2]
[325273994,1714677055952,-500.0,0.00030136,2]
[325273995,1714677055962,-500.0,0.00030136,2]
[325273996,1714677055971,-500.0,0.00030136,2]
[325273997,1714677055981,-500.0,0.00030136,2]
[325273998,1714677055991,-500.0,0.00030136,2]
[325273999,1714677056000,-500.62936434,0.00030136,2]
[325274000,1714677056009,-500.0,0.00030136,2]
[325274001,1714677056018,-500.0,0.00030136,2]
[325274002,1714677056028,-500.0,0.00030136,2]
[325274003,1714677056037,-500.0,0.00030136,2]
[325274004,1714677056046,-500.0,0.00030136,2]
[325274005,1714677056055,-500.0,0.00030136,2]
[325274006,1714677056065,-500.0,0.00030136,2]
[325274007,1714677056076,-500.0,0.00030136,2]
[325274008,1714677056087,-500.0,0.00030136,2]
[325274009,1714677056096,-500.0,0.00030136,2]
[325274010,1714677056106,-777.81,0.00030136,2]
[325274011,1714677056115,-500.0,0.00030136,2]
[325274012,1714677056124,-500.0,0.00030136,2]
[325274013,1714677056133,-500.0,0.00030136,2]
[325274014,1714677056143,-1400.77,0.00030136,2]
[325274015,1714677056153,-500.0,0.00030136,2]
[325274016,1714677056162,-500.0,0.00030136,2]
[325274017,1714677056171,-725.16,0.00030136,2]
[325274018,1714677056180,-500.0,0.00030136,2]
[325274019,1714677056189,-501.33111799,0.00030136,2]
[325274020,1714677056198,-500.0,0.00030136,2]
[325274021,1714677056208,-697.91,0.00030136,2]
[325274022,1714677056217,-521.74,0.00030136,2]
[325274023,1714677056227,-500.0,0.00030136,2]
[325274024,1714677056236,-500.0,0.00030136,2]
[325274025,1714677056246,-587.38,0.00030136,2]
[325274026,1714677056255,-500.0,0.00030136,2]
[325274027,1714677056264,-500.0,0.00030136,2]
[325274028,1714677056273,-1251.18,0.00030136,2]
[325274029,1714677056282,-500.0,0.00030136,2]
[325274030,1714677056291,-500.0,0.00030136,2]
[325274031,1714677056300,-500.0,0.00030136,2]
[325274032,1714677056309,-500.0,0.00030136,2]
[325274033,1714677056318,-500.0,0.00030136,2]
[325274034,1714677056327,-1009.55,0.00030136,2]
[325274035,1714677056336,-3492.77,0.00030136,2]
[325274036,1714677056345,-500.0,0.00030136,2]
[325274037,1714677056354,-500.0,0.00030136,2]
[325274038,1714677056363,-500.0,0.00030136,2]
[325274039,1714677056372,-1558.23,0.00030136,2]
[325274040,1714677056381,-500.0,0.00030136,2]
[325274041,1714677056392,-500.0,0.00030136,2]
[325274042,1714677056402,-500.0,0.00030136,2]
[325274043,1714677056411,-932.47,0.00030136,2]
[325274044,1714677056421,-644.73,0.00030136,2]
[325274045,1714677056430,-13600.44,0.00030136,2]
[325274046,1714677056440,-500.0,0.00030136,2]
[325274047,1714677056449,-2493.7,0.00030136,2]
[325274048,1714677056459,-883.39,0.00030136,2]
[325274049,1714677056470,-915.59,0.00030136,2]
[325274050,1714677056480,-500.0,0.00030136,2]
[325274051,1714677056489,-500.66097649,0.00030136,2]
[325274052,1714677056499,-500.0,0.00030136,2]
[325274053,1714677056508,-515.23,0.00030136,2]
[325274054,1714677056517,-500.0,0.00030136,2]
[325274055,1714677056527,-500.0,0.00030136,2]
[325274056,1714677056536,-500.0,0.00030136,2]
[325274057,1714677056545,-1210.57,0.00030136,2]
[325274058,1714677056555,-500.0,0.00030136,2]
[325274059,1714677056565,-817.86,0.00030136,2]
[325274060,1714677056575,-501.18822421,0.00030136,2]
[325274061,1714677056584,-500.0,0.00030136,2]
[325274062,1714677056594,-500.0,0.00030136,2]
[325274063,1714677056603,-6477.28,0.00030136,2]
[325274064,1714677056612,-500.0,0.00030136,2]
[325274065,1714677056621,-500.0,0.00030136,2]
[325274066,1714677056631,-500.0,0.00030136,2]
[325274067,1714677056640,-500.0,0.00030136,2]
[325274068,1714677056650,-500.0,0.00030136,2]
[325274069,1714677056659,-705.61,0.00030136,2]
[325274070,1714677056668,-500.0,0.00030136,2]
[325274071,1714677056677,-656.17,0.00030136,2]
[325274072,1714677056686,-500.0,0.00030136,2]
[325274073,1714677056696,-1739.56,0.00030136,2]
[325274074,1714677056705,-1803.82,0.00030136,2]
[325274075,1714677056715,-500.0,0.00030136,2]
[325274076,1714677056724,-6107.47,0.00030136,2]
[325274077,1714677056734,-500.0,0.00030136,2]
[325274078,1714677056743,-791.66,0.00030136,2]
[325274079,1714677056753,-500.0,0.00030136,2]
[325274080,1714677056764,-500.0,0.00030136,2]
[325274081,1714677056774,-500.0,0.00030136,2]
[325274082,1714677056784,-753.32,0.00030136,2]
[325274083,1714677056794,-500.0,0.00030136,2]
[325274084,1714677056804,-422.50413543,0.00030136,2]
[325274085,1714677056813,-347.97707583,0.00030136,2]
[325274086,1714677056823,-500.0,0.00030136,2]
[325274087,1714677056832,-500.0,0.00030136,2]
[325274088,1714677056842,-500.0,0.00030136,2]
[325274089,1714677056852,-1194.05,0.00030136,2]
[325274090,1714677056861,-2172.57,0.00030136,2]
[325274091,1714677056871,-500.0,0.00030136,2]
[325274092,1714677056880,-5346.35,0.00030136,2]
[325274093,1714677056890,-987.94,0.00030136,2]
[325274094,1714677056901,-500.0,0.00030136,2]
[325274095,1714677056912,-500.0,0.00030136,2]
[325274096,1714677056922,-500.0,0.00030136,2]
[325274097,1714677056931,-389.79448263,0.00030136,2]
[325274098,1714677056941,-500.0,0.00030136,2]
[325274099,1714677056951,-893.01,0.00030136,2]
[325274100,1714677056961,-500.0,0.00030136,2]
[325274101,1714677056970,-500.0,0.00030136,2]
[325274102,1714677056980,-500.0,0.00030136,2]
[325274103,1714677056990,-500.0,0.00030136,2]
[325274104,1714677057001,-626.59,0.00030136,2]
[325274105,1714677057011,-500.0,0.00030136,2]
[325274106,1714677057022,-500.0,0.00030136,2]
[325274107,1714677057031,-500.0,0.00030136,2]
[325274108,1714677057040,-500.0,0.00030136,2]
[325274109,1714677057051,-500.0,0.00030136,2]
[325274110,1714677057061,-500.0,0.00030136,2]
[325274111,1714677057074,-500.0,0.00030136,2]
[325274112,1714677057086,-151.0,0.00030136,7]
[325274113,1714677057096,-500.0,0.00030136,2]
[325274114,1714677057106,-500.0,0.00030136,2]
[325274115,1714677057117,-500.0,0.00030136,2]
[325274116,1714677057126,-20234.5,0.00030136,2]
[325274117,1714677057137,-2613.77,0.00030136,2]
[325274118,1714677057148,-1585.21,0.00030136,2]
[325274119,1714677057159,-500.0,0.00030136,2]
[325274120,1714677057170,-500.0,0.00030136,2]
[325274121,1714677057192,-500.0,0.00030136,2]
[325274122,1714677057204,-500.0,0.00030136,2]
[325274123,1714677057214,-31375.1,0.00030136,2]
[325274124,1714677057226,-500.0,0.00030136,2]
[325274125,1714677057238,-500.0,0.00030136,2]
[325274126,1714677057250,-649.5276791,0.00030136,2]
[325274127,1714677057260,-1364.52,0.00030136,2]
[325274128,1714677057271,-500.0,0.00030136,2]
[325274129,1714677057282,-2329.59,0.00030136,2]
[325274130,1714677057293,-500.0,0.00030136,2]
[325274131,1714677057303,-500.0,0.00030136,2]
[325274132,1714677057315,-500.0,0.00030136,2]
[325274133,1714677057325,-500.0,0.00030136,2]
[325274134,1714677057338,-500.0,0.00030136,2]
[325274135,1714677057349,-500.0,0.00030136,2]
[325274136,1714677057360,-966.58,0.00030136,2]
[325274137,1714677057370,-505.36,0.00030136,2]
[325274138,1714677057381,-989.18,0.00030136,2]
[325274139,1714677057391,-3073.67,0.00030136,2]
[325274140,1714677057401,-500.0,0.00030136,2]
[325274141,1714677057412,-670.17,0.00030136,2]
[325274142,1714677057423,-161.39635171,0.00030136,2]
[325274143,1714677057434,-500.0,0.00030136,2]
[325274144,1714677057444,-2552.91,0.00030136,2]
[325274145,1714677057455,-500.0,0.00030136,2]
[325274146,1714677057469,-2693.06,0.00030136,2]
[325274147,1714677057481,-2520.52,0.00030136,2]
[325274148,1714677057492,-500.0,0.00030136,2]
[325274149,1714677057503,-500.0,0.00030136,2]
[325274150,1714677057513,-500.0,0.00030136,2]
[325274151,1714677057524,-706.20038689,0.00030136,7]
[325274152,1714677057534,-500.0,0.00030136,2]
[325274153,1714677057544,-500.0,0.00030136,2]
[325274154,1714677057554,-500.0,0.00030136,2]
[325274155,1714677057564,-500.0,0.00030136,2]
[325274156,1714677057575,-1498.96,0.00030136,2]
[325274157,1714677057584,-500.0,0.00030136,2]
[325274158,1714677057596,-500.0,0.00030136,2]
[325274159,1714677057606,-2646.61,0.00030136,2]
[325274160,1714677057616,-500.0,0.00030136,2]
[325274161,1714677057627,-1069.15,0.00030136,2]
[325274162,1714677057636,-500.0,0.00030136,2]
[325274163,1714677057647,-399.36126546,0.00030136,2]
[325274164,1714677057674,-5616.71,0.00030136,2]
[325274165,1714677057684,-500.0,0.00030136,2]
[325274166,1714677057694,-500.0,0.00030136,2]
[325274167,1714677057704,-1405.67,0.00030136,2]
[325274168,1714677057714,-509.09003425,0.00030136,2]
[325274169,1714677057724,-5325.66,0.00030136,2]
[325274170,1714677057734,-512.39522928,0.00030136,2]
[325274171,1714677057743,-500.0,0.00030136,2]
[325274172,1714677057753,-1349.07,0.00030136,2]
[325274173,1714677057762,-500.0,0.00030136,2]
[325274174,1714677057772,-501.5207378,0.00030136,2]
[325274175,1714677057781,-500.0,0.00030136,2]
[325274176,1714677057791,-1102.89,0.00030136,2]
[325274177,1714677057800,-2607.94,0.00030136,2]
[325274178,1714677057815,-506.54140424,0.00030136,2]
[325274179,1714677057826,-889.23,0.00030136,2]
[325274180,1714677057837,-3609.13,0.00030136,2]
[325274181,1714677057846,-500.0,0.00030136,2]
[325274182,1714677057857,-621.17,0.00030136,2]
[325274183,1714677057867,-500.0,0.00030136,2]
[325274184,1714677057877,-500.0,0.00030136,2]
[325274185,1714677057888,-500.0,0.00030136,2]
[325274186,1714677057898,-500.0,0.00030136,2]
[325274187,1714677057908,-11008.49,0.00030136,2]
[325274188,1714677057918,-500.0,0.00030136,2]
[325274189,1714677057929,-926.24,0.00030136,2]
[325274190,1714677057938,-918.51,0.00030136,2]
[325274191,1714677057949,-508.62874262,0.00030136,2]
[325274192,1714677057958,-500.72,0.00030136,2]
[325274193,1714677057969,-500.0,0.00030136,2]
[325274194,1714677057978,-509.53,0.00030136,2]
[325274195,1714677057988,-500.0,0.00030136,2]
[325274196,1714677057998,-495.425,0.00030136,2]
[325274197,1714677058008,-500.0,0.00030136,2]
[325274198,1714677058019,-1110.52,0.00030136,2]
[325274199,1714677058029,-4238.26,0.00030136,2]
[325274200,1714677058039,-1374.14,0.00030136,2]
[325274201,1714677058049,-500.0,0.00030136,4]
[325274202,1714677058060,-647.37423764,0.00030136,2]
[325274203,1714677058072,-500.0,0.00030136,2]
[325274204,1714677058083,-4743.2,0.00030136,2]
[325274205,1714677058092,-612.3783687,0.00030136,2]
[325274206,1714677058252,-500.0,0.00030136,2]
[325274207,1714677058261,-836.49,0.00030136,2]
[325274208,1714677058271,-1519.27,0.00030136,2]
[325274209,1714677058281,-439.39390517,0.00030136,2]
[325274210,1714677058290,-500.0,0.00030136,2]
[325274211,1714677058299,-8604.97,0.00030136,2]
[325274212,1714677058308,-897.66,0.00030136,2]
[325274213,1714677058317,-610.37,0.00030136,2]
[325274214,1714677058326,-747.83,0.00030136,2]
[325274215,1714677058335,-42930.08,0.00030136,2]
[325274216,1714677058344,-1080.66,0.00030136,2]
[325274217,1714677058353,-1777.65,0.00030136,2]
[325274218,1714677058362,-500.0,0.00030136,2]
[325274219,1714677058371,-500.0,0.00030136,2]
[325274220,1714677058380,-500.0,0.00030136,2]
[325274221,1714677058392,-500.0,0.00030136,2]
[325274222,1714677058401,-287.03417683,0.00030136,2]
[325274223,1714677058412,-3264.87,0.00030136,2]
[325274224,1714677058420,-766.2,0.00030136,2]
[325274225,1714677058431,-500.0,0.00030136,2]
[325274226,1714677058441,-500.0,0.00030136,2]
[325274227,1714677058450,-500.0,0.00030136,2]
[325274228,1714677058459,-500.0,0.00030136,2]
[325274229,1714677058469,-2010.33,0.00030136,2]
[325274230,1714677058478,-2346.39,0.00030136,2]
[325274231,1714677058487,-31614.2,0.00030136,2]
[325274232,1714677058496,-500.0,0.00030136,2]
[325274233,1714677058506,-500.0,0.00030136,2]
[325274234,1714677058515,-500.0,0.00030136,2]
[325274235,1714677058524,-469.72174561,0.00030136,2]
[325274236,1714677058534,-500.0,0.00030136,2]
[325274237,1714677058543,-500.0,0.00030136,2]
[325274238,1714677058552,-4805.89,0.00030136,2]
[325274239,1714677058561,-500.0,0.00030136,2]
[325274240,1714677058571,-15102.33,0.00030136,2]
[325274241,1714677058581,-500.0,0.00030136,2]
[325274242,1714677058590,-1907.96,0.00030136,2]
[325274243,1714677058599,-1578.67,0.00030136,2]
[325274244,1714677058608,-500.0,0.00030136,2]
[325274245,1714677058618,-500.0,0.00030136,2]
[325274246,1714677058627,-2715.8,0.00030136,2]
[325274247,1714677058636,-500.0,0.00030136,2]
[325274248,1714677058645,-500.0,0.00030136,2]
[325274249,1714677058655,-500.0,0.00030136,2]
[325274250,1714677058666,-3520.07,0.00030136,2]
[325274251,1714677058675,-575.4253088,0.00030136,2]
[325274252,1714677058684,-564.99,0.00030136,2]
[325274253,1714677058694,-1787.3,0.00030136,2]
[325274254,1714677058703,-3381.3,0.00030136,2]
[325274255,1714677058712,-631.18,0.00030136,2]
[325274256,1714677058721,-898.41,0.00030136,2]
[325274257,1714677058730,-500.0,0.00030136,2]
[325274258,1714677058739,-500.0,0.00030136,2]
[325274259,1714677058748,-763.53,0.00030136,2]
[325274260,1714677058758,-500.0,0.00030136,2]
[325274261,1714677058767,-501.16952848,0.00030136,2]
[325274262,1714677058776,-1049.78,0.00030136,2]
[325274263,1714677058786,-500.0,0.00030136,2]
[325274264,1714677058795,-500.0,0.00030136,2]
[325274265,1714677058805,-501.47,0.00030136,2]
[325274266,1714677058813,-500.0,0.00030136,2]
[325274267,1714677058823,-500.0,0.00030136,2]
[325274268,1714677058832,-500.0,0.00030136,2]
[325274269,1714677058842,-500.0,0.00030136,2]
[325274270,1714677058851,-595.02053455,0.00030136,2]
[325274271,1714677058860,-1988.22,0.00030136,2]
[325274272,1714677058869,-500.0,0.00030136,2]
[325274273,1714677058879,-500.0,0.00030136,2]
[325274274,1714677058890,-784.39,0.00030136,2]
[325274275,1714677058899,-500.0,0.00030136,2]
[325274276,1714677058909,-500.0,0.00030136,2]
[325274277,1714677058920,-1042.09,0.00030136,2]
[325274278,1714677058930,-2418.92,0.00030136,2]
[325274279,1714677058939,-500.0,0.00030136,2]